[Event "World Senior chT-65 2019"]
[Site "Rhodes"]
[Date "2019.04.19"]
[Round "4.19"]
[White "Baumbach, Friedrich"]
[Black "Maryasin, Boris"]
[Result "1/2-1/2"]
[ECO "D27"]
[WhiteElo "2089"]
[BlackElo "2297"]
[PlyCount "61"]
[EventDate "2019.04.16"]
[EventType "team-tourn"]
[EventCountry "GRE"]
[TimeControl "40/5400+30:1800+30"]

1. d4 {[%emt 0:00:00]} Nf6 {[%emt 0:00:00]} 2. c4 {[%emt 0:00:00]} e6 {[%emt 0:00:06]} 3. Nf3 {[%emt 0:00:00]} d5 {[%emt 0:00:23]} 4. Nc3 {[%emt 0:00:13]} dxc4 {[%emt 0:00:22]} 5. e3 {[%emt 0:00:50]} a6 {[%emt 0:00:23]} 6. Bxc4 {[%emt 0:00:11]} b5 {[%emt 0:00:13]} 7. Bd3 {[%emt 0:02:07]} Bb7 {[%emt 0:00:14]} 8. O-O {[%emt 0:00:54]} c5 {[%emt 0:01:29]} 9. dxc5 {[%emt 0:04:52]} Bxc5 {[%emt 0:00:26]} 10. Qe2 {[%emt 0:00:39]} Nbd7 {[%emt 0:02:45]} 11. e4 {[%emt 0:06:09]} b4 {[%emt 0:06:35]} 12. Na4 {[%emt 0:02:55]} Bd6 {[%emt 0:01:30]} 13. Bg5 {[%emt 0:07:49]} Qa5 {[%emt 0:03:08]} 14. b3 {[%emt 0:04:02]} Ne5 {[%emt 0:02:12]} 15. Bxf6 {[%emt 0:03:31]} gxf6 {[%emt 0:00:16]} 16. Nxe5 {[%emt 0:02:38]} Qxe5 {[%emt 0:06:12]} 17. g3 {[%emt 0:02:07]} Rd8 {[%emt 0:06:00]} 18. Nb2 {[%emt 0:07:33]} Bc5 {[%emt 0:01:08]} 19. Rac1 {[%emt 0:04:22]} O-O {[%emt 0:04:44]} 20. Rc4 {[%emt 0:06:13]} a5 {[%emt 0:03:48]} 21. Rc2 {[%emt 0:02:07]} Bd4 {[%emt 0:03:30]} 22. Nc4 {[%emt 0:05:00]} Qg5 {[%emt 0:00:17]} 23. Kg2 {[%emt 0:01:46]} f5 {[%emt 0:02:43]} 24. h4 {[%emt 0:02:37]} Qg6 {[%emt 0:01:53]} 25. f3 {[%emt 0:17:04]} fxe4 {[%emt 0:03:33]} 26. Bxe4 {[%emt 0:00:32]} Bxe4 {[%emt 0:00:10]} 27. Qxe4 {[%emt 0:00:15]} Rd5 {[%emt 0:00:33]} 28. Qxg6+ {[%emt 0:01:20]} hxg6 {[%emt 0:00:10]} 29. Rd1 {[%emt 0:00:22]} Rfd8 {[%emt 0:02:18]} 30. Rcd2 {[%emt 0:01:20]} e5 {[%emt 0:01:50]} 31. Re2 {[%emt 0:07:42]} 1/2-1/2

[Event "World Senior chT-65 2019"]
[Site "Rhodes"]
[Date "2019.04.19"]
[Round "4.20"]
[White "Lederman, Leon"]
[Black "Just, Joachim"]
[Result "1-0"]
[ECO "C10"]
[WhiteElo "2281"]
[BlackElo "1970"]
[PlyCount "84"]
[EventDate "2019.04.16"]
[EventType "team-tourn"]
[EventCountry "GRE"]
[TimeControl "40/5400+30:1800+30"]

1. e4 {[%emt 0:00:00]} e6 {[%emt 0:00:00]} 2. d4 {[%emt 0:00:00]} d5 {[%emt 0:00:00]} 3. Nc3 {[%emt 0:00:00]} dxe4 {[%emt 0:00:19]} 4. Nxe4 {[%emt 0:00:00]} Nd7 {[%emt 0:00:20]} 5. Nf3 {[%emt 0:00:00]} Ndf6 {[%emt 0:00:22]} 6. Ned2 {[%emt 0:00:48]} c5 {[%emt 0:01:00]} 7. Nc4 {[%emt 0:01:58]} Bd7 {[%emt 0:03:40]} 8. Nce5 {[%emt 0:01:21]} a6 {[%emt 0:01:27]} 9. Bd3 {[%emt 0:02:39]} cxd4 {[%emt 0:01:08]} 10. Nxd4 {[%emt 0:00:43]} Qa5+ {[%emt 0:00:27]} 11. c3 {[%emt 0:05:03]} Qxe5+ {[%emt 0:00:14]} 12. Be2 {[%emt 0:00:02]} Ne7 {[%emt 0:04:43]} 13. O-O {[%emt 0:00:15]} Nc6 {[%emt 0:00:28]} 14. Re1 {[%emt 0:00:44]} Qc7 {[%emt 0:02:44]} 15. Bf3 {[%emt 0:01:47]} Be7 {[%emt 0:00:50]} 16. Bg5 {[%emt 0:01:31]} Rd8 {[%emt 0:01:53]} 17. Qe2 {[%emt 0:01:26]} Nxd4 {[%emt 0:01:09]} 18. cxd4 {[%emt 0:00:03]} Bc6 {[%emt 0:00:26]} 19. Rac1 {[%emt 0:01:34]} Nd5 {[%emt 0:04:10]} 20. Bd2 {[%emt 0:01:15]} O-O {[%emt 0:00:54]} 21. Be4 {[%emt 0:01:40]} Nf6 {[%emt 0:01:10]} 22. Bxc6 {[%emt 0:00:20]} bxc6 {[%emt 0:00:10]} 23. Qxa6 {[%emt 0:00:02]} c5 {[%emt 0:03:46]} 24. Ba5 {[%emt 0:16:55]} Qc8 {[%emt 0:02:23]} 25. Qxc8 {[%emt 0:00:50]} Rxc8 {[%emt 0:00:00]} 26. dxc5 {[%emt 0:00:10]} Rxc5 {[%emt 0:02:09]} 27. Rxc5 {[%emt 0:00:12]} Bxc5 {[%emt 0:00:07]} 28. b4 {[%emt 0:00:03]} Ba7 {[%emt 0:01:07]} 29. b5 {[%emt 0:01:39]} Nd5 {[%emt 0:01:35]} 30. a4 {[%emt 0:02:06]} Rc8 {[%emt 0:01:24]} 31. h4 {[%emt 0:05:55]} Rc2 {[%emt 0:02:07]} 32. Rb1 {[%emt 0:01:13]} Bxf2+ {[%emt 0:07:52]} 33. Kh2 {[%emt 0:00:35]} Ba7 {[%emt 0:00:13]} 34. b6 {[%emt 0:00:57]} Bb8+ {[%emt 0:00:23]} 35. Kh1 {[%emt 0:00:08]} Rc4 {[%emt 0:00:15]} 36. Be1 {[%emt 0:00:26]} Rxa4 {[%emt 0:03:01]} 37. b7 {[%emt 0:00:04]} Ne3 {[%emt 0:02:55]} 38. Bg3 {[%emt 0:00:48]} e5 {[%emt 0:05:13]} 39. Bxe5 {[%emt 0:00:36]} f6 {[%emt 0:19:35]} 40. Bxb8 {[%emt 0:00:00]} Rxh4+ {[%emt 0:00:00]} 41. Kg1 {[%emt 0:00:53]} Re4 {[%emt 0:04:41]} 42. Bf4 {[%emt 0:00:38]} Rxf4 {[%emt 0:00:41]} 1-0

[Event "World Senior chT-65 2019"]
[Site "Rhodes"]
[Date "2019.04.19"]
[Round "4.21"]
[White "Carlsson, Ingvar"]
[Black "Page, Mark E"]
[Result "1/2-1/2"]
[ECO "B23"]
[WhiteElo "2119"]
[BlackElo "2107"]
[PlyCount "75"]
[EventDate "2019.04.16"]
[EventType "team-tourn"]
[EventCountry "GRE"]
[TimeControl "40/5400+30:1800+30"]

1. e4 {[%emt 0:00:00]} c5 {[%emt 0:00:00]} 2. Nc3 {[%emt 0:00:00]} a6 {[%emt 0:00:00]} 3. a4 {[%emt 0:04:22]} Nc6 {[%emt 0:00:22]} 4. g3 {[%emt 0:00:18]} g6 {[%emt 0:00:34]} 5. Bg2 {[%emt 0:00:13]} Bg7 {[%emt 0:00:06]} 6. d3 {[%emt 0:00:45]} d6 {[%emt 0:01:16]} 7. Be3 {[%emt 0:06:46]} e5 {[%emt 0:05:50]} 8. Qd2 {[%emt 0:01:29]} Nge7 {[%emt 0:00:52]} 9. h4 {[%emt 0:03:57]} h5 {[%emt 0:04:36]} 10. Nf3 {[%emt 0:14:34]} Nd4 {[%emt 0:06:13]} 11. O-O {[%emt 0:00:54]} Bg4 {[%emt 0:10:58]} 12. Nh2 {[%emt 0:00:21]} Be6 {[%emt 0:00:56]} 13. f4 {[%emt 0:15:45]} Rb8 {[%emt 0:07:07]} 14. Rf2 {[%emt 0:12:25]} b5 {[%emt 0:24:08]} 15. axb5 {[%emt 0:00:10]} axb5 {[%emt 0:00:07]} 16. Raf1 {[%emt 0:01:59]} b4 {[%emt 0:02:39]} 17. Nd1 {[%emt 0:08:57]} exf4 {[%emt 0:04:41]} 18. Bxf4 {[%emt 0:01:41]} O-O {[%emt 0:02:45]} 19. c3 {[%emt 0:08:19]} bxc3 {[%emt 0:00:47]} 20. bxc3 {[%emt 0:00:04]} Nb3 {[%emt 0:00:47]} 21. Qe2 {[%emt 0:00:24]} Qd7 {[%emt 0:02:03]} 22. Bg5 {[%emt 0:01:55]} Nc6 {[%emt 0:00:39]} 23. Bf6 {[%emt 0:00:51]} Ne5 {[%emt 0:04:03]} 24. Ne3 {[%emt 0:01:42]} Bxf6 {[%emt 0:10:35]} 25. Rxf6 {[%emt 0:00:15]} Kg7 {[%emt 0:00:41]} 26. R6f2 {[%emt 0:04:01]} Qb5 {[%emt 0:02:07]} 27. c4 {[%emt 0:00:18]} Qd7 {[%emt 0:00:08]} 28. Nf5+ {[%emt 0:02:03]} Kh7 {[%emt 0:00:28]} 29. Qe3 {[%emt 0:00:38]} Bxf5 {[%emt 0:01:58]} 30. exf5 {[%emt 0:00:04]} Qe7 {[%emt 0:04:44]} 31. Be4 {[%emt 0:01:05]} Nd4 {[%emt 0:00:53]} 32. Qf4 {[%emt 0:02:26]} gxf5 {[%emt 0:01:48]} 33. Bxf5+ {[%emt 0:00:15]} Kg7 {[%emt 0:00:22]} 34. Qe4 {[%emt 0:02:15]} Rg8 {[%emt 0:00:39]} 35. Bh7 {[%emt 0:01:01]} Rgf8 {[%emt 0:00:42]} 36. Bf5 {[%emt 0:01:08]} Rg8 {[%emt 0:00:21]} 37. Bh7 {[%emt 0:02:44]} Rgf8 {[%emt 0:00:06]} 38. Bf5 {[%emt 0:01:39]} 1/2-1/2

[Event "World Senior chT-65 2019"]
[Site "Rhodes"]
[Date "2019.04.19"]
[Round "4.22"]
[White "Bray, David"]
[Black "Nordstrom, Felix"]
[Result "1/2-1/2"]
[ECO "D41"]
[WhiteElo "2121"]
[BlackElo "2044"]
[PlyCount "68"]
[EventDate "2019.04.16"]
[EventType "team-tourn"]
[EventCountry "GRE"]
[TimeControl "40/5400+30:1800+30"]

1. c4 {[%emt 0:00:00]} c5 {[%emt 0:00:32]} 2. Nf3 {[%emt 0:00:00]} Nf6 {[%emt 0:00:28]} 3. Nc3 {[%emt 0:00:00]} d5 {[%emt 0:00:52]} 4. cxd5 {[%emt 0:00:00]} Nxd5 {[%emt 0:00:04]} 5. d4 {[%emt 0:00:00]} e6 {[%emt 0:04:29]} 6. e4 {[%emt 0:00:13]} Nxc3 {[%emt 0:00:33]} 7. bxc3 {[%emt 0:00:02]} cxd4 {[%emt 0:01:17]} 8. cxd4 {[%emt 0:00:02]} Bb4+ {[%emt 0:00:59]} 9. Bd2 {[%emt 0:00:14]} Bxd2+ {[%emt 0:00:47]} 10. Qxd2 {[%emt 0:00:09]} O-O {[%emt 0:00:14]} 11. Bc4 {[%emt 0:00:44]} Nc6 {[%emt 0:02:35]} 12. O-O {[%emt 0:01:01]} b6 {[%emt 0:02:43]} 13. Rfd1 {[%emt 0:09:27]} Bb7 {[%emt 0:02:26]} 14. Rac1 {[%emt 0:14:44]} Rc8 {[%emt 0:18:56]} 15. Qf4 {[%emt 0:11:18]} Na5 {[%emt 0:00:00]} 16. Bd3 {[%emt 0:04:31]} Qe7 {[%emt 0:02:40]} 17. h4 {[%emt 0:02:47]} Rfd8 {[%emt 0:12:04]} 18. Rxc8 {[%emt 0:16:07]} Rxc8 {[%emt 0:01:11]} 19. Rc1 {[%emt 0:00:21]} Rxc1+ {[%emt 0:05:33]} 20. Qxc1 {[%emt 0:00:02]} Qd8 {[%emt 0:03:50]} 21. Qf4 {[%emt 0:04:21]} Nc6 {[%emt 0:04:02]} 22. Ng5 {[%emt 0:03:40]} Qe7 {[%emt 0:09:50]} 23. d5 {[%emt 0:05:04]} e5 {[%emt 0:03:31]} 24. Qg4 {[%emt 0:03:45]} Nd8 {[%emt 0:03:19]} 25. f4 {[%emt 0:04:18]} Qc5+ {[%emt 0:01:34]} 26. Kh2 {[%emt 0:00:45]} Bc8 {[%emt 0:01:15]} 27. Qf3 {[%emt 0:04:24]} f6 {[%emt 0:01:51]} 28. Nh3 {[%emt 0:00:17]} Nf7 {[%emt 0:03:05]} 29. f5 {[%emt 0:02:32]} Qc1 {[%emt 0:04:10]} 30. Qe2 {[%emt 0:01:09]} h6 {[%emt 0:01:22]} 31. Ba6 {[%emt 0:04:47]} Nd6 {[%emt 0:01:40]} 32. Bxc8 {[%emt 0:01:55]} Qxc8 {[%emt 0:00:03]} 33. g4 {[%emt 0:00:18]} Qc1 {[%emt 0:00:29]} 34. Qg2 {[%emt 0:04:00]} Qe3 {[%emt 0:00:39]} 1/2-1/2

[Event "World Senior chT-65 2019"]
[Site "Rhodes"]
[Date "2019.04.19"]
[Round "4.23"]
[White "Grahn, Lars"]
[Black "Stokes, Michael"]
[Result "1/2-1/2"]
[ECO "D37"]
[WhiteElo "1985"]
[BlackElo "2092"]
[PlyCount "45"]
[EventDate "2019.04.16"]
[EventType "team-tourn"]
[EventCountry "GRE"]
[TimeControl "40/5400+30:1800+30"]

1. d4 {[%emt 0:00:00]} d5 {[%emt 0:00:00]} 2. Nf3 {[%emt 0:00:00]} Nf6 {[%emt 0:00:00]} 3. e3 {[%emt 0:00:00]} e6 {[%emt 0:00:00]} 4. c4 {[%emt 0:00:05]} Be7 {[%emt 0:00:16]} 5. Nc3 {[%emt 0:00:26]} O-O {[%emt 0:00:08]} 6. b3 {[%emt 0:00:30]} b6 {[%emt 0:00:54]} 7. Bd3 {[%emt 0:00:48]} Bb7 {[%emt 0:00:30]} 8. Qc2 {[%emt 0:01:33]} dxc4 {[%emt 0:03:22]} 9. bxc4 {[%emt 0:02:15]} c5 {[%emt 0:02:31]} 10. Ne4 {[%emt 0:12:54]} Nbd7 {[%emt 0:23:35]} 11. O-O {[%emt 0:01:11]} Rc8 {[%emt 0:03:18]} 12. Ned2 {[%emt 0:17:23]} h6 {[%emt 0:04:06]} 13. Bb2 {[%emt 0:01:30]} cxd4 {[%emt 0:03:04]} 14. exd4 {[%emt 0:00:39]} Nd5 {[%emt 0:03:51]} 15. Qb3 {[%emt 0:09:12]} Nf4 {[%emt 0:01:23]} 16. Be4 {[%emt 0:06:37]} Bxe4 {[%emt 0:04:14]} 17. Nxe4 {[%emt 0:00:02]} Qc7 {[%emt 0:00:41]} 18. Ned2 {[%emt 0:02:57]} Rfd8 {[%emt 0:03:24]} 19. Rfe1 {[%emt 0:01:59]} Ng6 {[%emt 0:04:57]} 20. Rac1 {[%emt 0:01:54]} Nf6 {[%emt 0:02:06]} 21. Ba3 {[%emt 0:07:49]} Bxa3 {[%emt 0:05:32]} 22. Qxa3 {[%emt 0:00:03]} Qb7 {[%emt 0:00:33]} 23. Qe3 {[%emt 0:03:05]} 1/2-1/2

[Event "World Senior chT-65 2019"]
[Site "Rhodes"]
[Date "2019.04.19"]
[Round "4.24"]
[White "Hewson, Brian W R"]
[Black "Svensson, Soren"]
[Result "1/2-1/2"]
[ECO "D46"]
[WhiteElo "2004"]
[BlackElo "1964"]
[PlyCount "39"]
[EventDate "2019.04.16"]
[EventType "team-tourn"]
[EventCountry "GRE"]
[TimeControl "40/5400+30:1800+30"]

1. d4 {[%emt 0:00:00]} d5 {[%emt 0:00:00]} 2. Nf3 {[%emt 0:00:00]} Nf6 {[%emt 0:00:00]} 3. c4 {[%emt 0:01:00]} e6 {[%emt 0:00:20]} 4. Nc3 {[%emt 0:01:01]} c6 {[%emt 0:00:41]} 5. e3 {[%emt 0:00:15]} Nbd7 {[%emt 0:00:14]} 6. Qc2 {[%emt 0:00:12]} Bd6 {[%emt 0:00:50]} 7. Bd3 {[%emt 0:07:34]} O-O {[%emt 0:02:30]} 8. O-O {[%emt 0:02:50]} dxc4 {[%emt 0:01:28]} 9. Bxc4 {[%emt 0:03:10]} e5 {[%emt 0:01:50]} 10. Rd1 {[%emt 0:18:27]} Qe7 {[%emt 0:01:07]} 11. dxe5 {[%emt 0:09:36]} Nxe5 {[%emt 0:00:38]} 12. Nxe5 {[%emt 0:00:14]} Bxe5 {[%emt 0:08:51]} 13. h3 {[%emt 0:00:42]} Bc7 {[%emt 0:11:26]} 14. Bf1 {[%emt 0:11:09]} Re8 {[%emt 0:12:52]} 15. Re1 {[%emt 0:06:29]} Qe5 {[%emt 0:12:32]} 16. f4 {[%emt 0:06:47]} Qc5 {[%emt 0:01:07]} 17. Qf2 {[%emt 0:00:05]} Bf5 {[%emt 0:03:59]} 18. g4 {[%emt 0:02:10]} Ne4 {[%emt 0:10:08]} 19. Nxe4 {[%emt 0:02:20]} Bxe4 {[%emt 0:00:15]} 20. Bd2 {[%emt 0:02:13]} 1/2-1/2

[Event "World Senior chT-65 2019"]
[Site "Rhodes"]
[Date "2019.04.19"]
[Round "4.25"]
[White "Andersson, Kaj"]
[Black "Pedersen, Svend"]
[Result "1/2-1/2"]
[ECO "B09"]
[WhiteElo "2030"]
[BlackElo "2178"]
[PlyCount "33"]
[EventDate "2019.04.16"]
[EventType "team-tourn"]
[EventCountry "GRE"]
[TimeControl "40/5400+30:1800+30"]

1. e4 {[%emt 0:00:00]} g6 {[%emt 0:00:00]} 2. d4 {[%emt 0:00:00]} Bg7 {[%emt 0:00:00]} 3. Nc3 {[%emt 0:00:31]} d6 {[%emt 0:00:00]} 4. f4 {[%emt 0:00:15]} Nf6 {[%emt 0:00:57]} 5. Nf3 {[%emt 0:00:30]} O-O {[%emt 0:00:04]} 6. Bd3 {[%emt 0:00:35]} Nc6 {[%emt 0:00:19]} 7. d5 {[%emt 0:05:29]} Nb4 {[%emt 0:00:53]} 8. Be2 {[%emt 0:01:13]} a5 {[%emt 0:05:25]} 9. O-O {[%emt 0:00:48]} c6 {[%emt 0:00:48]} 10. a3 {[%emt 0:01:37]} Na6 {[%emt 0:01:33]} 11. Be3 {[%emt 0:02:04]} cxd5 {[%emt 0:06:03]} 12. exd5 {[%emt 0:00:34]} Bd7 {[%emt 0:06:46]} 13. Qd2 {[%emt 0:02:37]} Nc5 {[%emt 0:05:45]} 14. Bd4 {[%emt 0:04:11]} a4 {[%emt 0:06:55]} 15. Rfe1 {[%emt 0:05:14]} Qa5 {[%emt 0:03:28]} 16. Bf1 {[%emt 0:05:30]} Rfe8 {[%emt 0:00:09]} 17. Rad1 {[%emt 0:02:34]} 1/2-1/2

[Event "World Senior chT-65 2019"]
[Site "Rhodes"]
[Date "2019.04.19"]
[Round "4.26"]
[White "Holst, Per"]
[Black "Carlsten, Peter"]
[Result "1-0"]
[ECO "A81"]
[WhiteElo "2150"]
[BlackElo "2002"]
[PlyCount "93"]
[EventDate "2019.04.16"]
[EventType "team-tourn"]
[EventCountry "GRE"]
[TimeControl "40/5400+30:1800+30"]

1. d4 {[%emt 0:00:00]} f5 {[%emt 0:00:00]} 2. g3 {[%emt 0:00:00]} Nf6 {[%emt 0:00:18]} 3. Bg2 {[%emt 0:00:00]} g6 {[%emt 0:00:12]} 4. Nf3 {[%emt 0:00:01]} Bg7 {[%emt 0:00:10]} 5. O-O {[%emt 0:00:08]} O-O {[%emt 0:00:12]} 6. Nbd2 {[%emt 0:00:12]} Nc6 {[%emt 0:01:25]} 7. Re1 {[%emt 0:00:42]} d5 {[%emt 0:00:12]} 8. c3 {[%emt 0:09:25]} a5 {[%emt 0:07:10]} 9. a4 {[%emt 0:00:53]} Re8 {[%emt 0:01:27]} 10. Qb3 {[%emt 0:02:22]} e6 {[%emt 0:06:40]} 11. Nf1 {[%emt 0:01:35]} Ne4 {[%emt 0:10:03]} 12. N3d2 {[%emt 0:06:51]} Nf6 {[%emt 0:07:06]} 13. f4 {[%emt 0:04:27]} Kh8 {[%emt 0:01:53]} 14. Nf3 {[%emt 0:00:21]} b6 {[%emt 0:01:52]} 15. Qc2 {[%emt 0:03:54]} Bb7 {[%emt 0:01:46]} 16. Rb1 {[%emt 0:03:19]} Qe7 {[%emt 0:02:24]} 17. Bd2 {[%emt 0:08:12]} Rec8 {[%emt 0:08:19]} 18. b4 {[%emt 0:17:12]} axb4 {[%emt 0:02:51]} 19. cxb4 {[%emt 0:00:12]} Ne4 {[%emt 0:00:16]} 20. e3 {[%emt 0:05:37]} Nxd2 {[%emt 0:01:31]} 21. N1xd2 {[%emt 0:00:31]} Nxb4 {[%emt 0:00:21]} 22. Qb3 {[%emt 0:01:02]} Nc6 {[%emt 0:01:00]} 23. Rec1 {[%emt 0:00:35]} Na5 {[%emt 0:00:30]} 24. Qd1 {[%emt 0:00:42]} Ba6 {[%emt 0:00:30]} 25. Bf1 {[%emt 0:00:57]} Bxf1 {[%emt 0:00:11]} 26. Qxf1 {[%emt 0:00:17]} Qa3 {[%emt 0:00:18]} 27. Kh1 {[%emt 0:04:29]} Qxa4 {[%emt 0:00:51]} 28. Ne5 {[%emt 0:00:14]} Bxe5 {[%emt 0:02:22]} 29. fxe5 {[%emt 0:00:07]} Qd7 {[%emt 0:00:17]} 30. Qf4 {[%emt 0:01:09]} Qe7 {[%emt 0:02:51]} 31. h4 {[%emt 0:00:23]} Kg7 {[%emt 0:01:58]} 32. Rc2 {[%emt 0:08:36]} Nb7 {[%emt 0:00:49]} 33. Nf3 {[%emt 0:00:39]} h5 {[%emt 0:01:07]} 34. Ng5 {[%emt 0:01:16]} Nd8 {[%emt 0:00:20]} 35. Qf1 {[%emt 0:00:20]} Ra3 {[%emt 0:03:57]} 36. Qe2 {[%emt 0:00:30]} Rca8 {[%emt 0:00:31]} 37. Kg2 {[%emt 0:01:30]} R8a7 {[%emt 0:02:58]} 38. Nh3 {[%emt 0:02:54]} Ra1 {[%emt 0:05:32]} 39. Rbb2 {[%emt 0:00:17]} Kh6 {[%emt 0:03:36]} 40. Nf4 {[%emt 0:00:00]} R1a4 {[%emt 0:00:00]} 41. Rb3 {[%emt 0:05:23]} Qd7 {[%emt 0:02:30]} 42. Qd2 {[%emt 0:01:25]} Nb7 {[%emt 0:02:35]} 43. e4 {[%emt 0:01:35]} Kg7 {[%emt 0:03:25]} 44. Rxc7 {[%emt 0:00:58]} Qxc7 {[%emt 0:04:41]} 45. Nxe6+ {[%emt 0:00:12]} Kf7 {[%emt 0:00:08]} 46. Nxc7 {[%emt 0:00:19]} Na5 {[%emt 0:00:01]} 47. e6+ {[%emt 0:01:08]} 1-0

[Event "World Senior chT-65 2019"]
[Site "Rhodes"]
[Date "2019.04.19"]
[Round "4.27"]
[White "Gustavsson, Sture"]
[Black "Hvenekilde, Jorgen"]
[Result "1/2-1/2"]
[ECO "A41"]
[WhiteElo "1976"]
[BlackElo "2046"]
[PlyCount "30"]
[EventDate "2019.04.16"]
[EventType "team-tourn"]
[EventCountry "GRE"]
[TimeControl "40/5400+30:1800+30"]

1. d4 {[%emt 0:00:00]} d6 {[%emt 0:00:53]} 2. Nf3 {[%emt 0:00:29]} Nd7 {[%emt 0:01:10]} 3. c4 {[%emt 0:00:38]} e5 {[%emt 0:00:41]} 4. dxe5 {[%emt 0:00:42]} dxe5 {[%emt 0:01:21]} 5. Nc3 {[%emt 0:02:13]} c6 {[%emt 0:00:39]} 6. g3 {[%emt 0:04:39]} Qc7 {[%emt 0:06:50]} 7. Bg2 {[%emt 0:00:49]} a5 {[%emt 0:02:10]} 8. O-O {[%emt 0:01:30]} Nc5 {[%emt 0:07:57]} 9. b3 {[%emt 0:03:52]} f6 {[%emt 0:01:46]} 10. Qc2 {[%emt 0:04:55]} Be6 {[%emt 0:03:50]} 11. Bb2 {[%emt 0:03:09]} Nh6 {[%emt 0:00:58]} 12. e3 {[%emt 0:04:14]} Be7 {[%emt 0:03:11]} 13. Rfd1 {[%emt 0:05:40]} O-O {[%emt 0:01:52]} 14. Qe2 {[%emt 0:07:30]} Rae8 {[%emt 0:01:44]} 15. Nd2 {[%emt 0:07:27]} Nf7 {[%emt 0:09:11]} 1/2-1/2

[Event "World Senior chT-65 2019"]
[Site "Rhodes"]
[Date "2019.04.19"]
[Round "4.28"]
[White "Grevlund, Per"]
[Black "Lundgren, Ulf"]
[Result "1/2-1/2"]
[ECO "C44"]
[WhiteElo "1998"]
[BlackElo "1964"]
[PlyCount "54"]
[EventDate "2019.04.16"]
[EventType "team-tourn"]
[EventCountry "GRE"]
[TimeControl "40/5400+30:1800+30"]

1. e4 {[%emt 0:00:00]} e5 {[%emt 0:00:00]} 2. Nf3 {[%emt 0:00:00]} Nc6 {[%emt 0:00:00]} 3. c3 {[%emt 0:00:09]} Nf6 {[%emt 0:02:13]} 4. d4 {[%emt 0:00:33]} exd4 {[%emt 0:02:57]} 5. e5 {[%emt 0:00:21]} Qe7 {[%emt 0:06:34]} 6. cxd4 {[%emt 0:00:34]} Ne4 {[%emt 0:01:43]} 7. Bd3 {[%emt 0:10:27]} d5 {[%emt 0:00:30]} 8. O-O {[%emt 0:10:23]} h6 {[%emt 0:07:25]} 9. Re1 {[%emt 0:04:58]} Ng5 {[%emt 0:05:31]} 10. Nc3 {[%emt 0:09:49]} Be6 {[%emt 0:00:45]} 11. Nxg5 {[%emt 0:03:44]} hxg5 {[%emt 0:00:18]} 12. Bb5 {[%emt 0:00:35]} g4 {[%emt 0:02:10]} 13. Qa4 {[%emt 0:05:16]} Qd7 {[%emt 0:08:16]} 14. Bd2 {[%emt 0:02:01]} a6 {[%emt 0:09:25]} 15. Rac1 {[%emt 0:00:31]} Rb8 {[%emt 0:00:06]} 16. Bxc6 {[%emt 0:02:36]} Qxc6 {[%emt 0:00:07]} 17. Qxc6+ {[%emt 0:00:26]} bxc6 {[%emt 0:00:05]} 18. Na4 {[%emt 0:00:49]} Bb4 {[%emt 0:08:06]} 19. Red1 {[%emt 0:02:45]} Bd7 {[%emt 0:01:24]} 20. a3 {[%emt 0:02:41]} Be7 {[%emt 0:01:30]} 21. b4 {[%emt 0:05:01]} Rb5 {[%emt 0:06:27]} 22. Nc5 {[%emt 0:01:42]} Bxc5 {[%emt 0:00:34]} 23. Rxc5 {[%emt 0:05:32]} Rxc5 {[%emt 0:00:09]} 24. bxc5 {[%emt 0:00:19]} Bf5 {[%emt 0:00:07]} 25. Bc3 {[%emt 0:01:28]} Kd7 {[%emt 0:00:25]} 26. Rd2 {[%emt 0:00:07]} Rb8 {[%emt 0:00:44]} 27. Rb2 {[%emt 0:00:03]} Rxb2 {[%emt 0:01:01]} 1/2-1/2

[Event "World Senior chT-65 2019"]
[Site "Rhodes"]
[Date "2019.04.19"]
[Round "4.29"]
[White "Herzog, Adolf"]
[Black "Vucenovic, Dragomir"]
[Result "0-1"]
[ECO "D02"]
[WhiteElo "2337"]
[BlackElo "2168"]
[PlyCount "96"]
[EventDate "2019.04.16"]
[EventType "team-tourn"]
[EventCountry "GRE"]
[TimeControl "40/5400+30:1800+30"]

1. d4 {[%emt 0:00:00]} d5 {[%emt 0:00:00]} 2. Nf3 {[%emt 0:00:00]} Nf6 {[%emt 0:00:03]} 3. c3 {[%emt 0:00:39]} g6 {[%emt 0:01:08]} 4. Bf4 {[%emt 0:00:40]} Bg7 {[%emt 0:00:28]} 5. e3 {[%emt 0:00:12]} O-O {[%emt 0:01:07]} 6. Nbd2 {[%emt 0:00:35]} b6 {[%emt 0:03:05]} 7. Rc1 {[%emt 0:06:07]} Bb7 {[%emt 0:05:57]} 8. Bd3 {[%emt 0:03:58]} Nbd7 {[%emt 0:03:30]} 9. h3 {[%emt 0:06:23]} Ne4 {[%emt 0:02:08]} 10. Bh2 {[%emt 0:05:39]} c5 {[%emt 0:07:35]} 11. O-O {[%emt 0:02:14]} Rc8 {[%emt 0:08:29]} 12. Re1 {[%emt 0:11:48]} Nxd2 {[%emt 0:04:09]} 13. Qxd2 {[%emt 0:00:37]} Nf6 {[%emt 0:01:12]} 14. Be5 {[%emt 0:08:15]} Ne4 {[%emt 0:11:39]} 15. Bxe4 {[%emt 0:10:35]} dxe4 {[%emt 0:00:32]} 16. Bxg7 {[%emt 0:00:04]} Kxg7 {[%emt 0:00:20]} 17. Nh2 {[%emt 0:01:36]} cxd4 {[%emt 0:24:07]} 18. exd4 {[%emt 0:05:42]} h5 {[%emt 0:01:28]} 19. Nf1 {[%emt 0:04:15]} e6 {[%emt 0:08:00]} 20. Qf4 {[%emt 0:02:04]} Qc7 {[%emt 0:00:57]} 21. Qg5 {[%emt 0:00:47]} Qd8 {[%emt 0:01:11]} 22. Qe5+ {[%emt 0:00:16]} f6 {[%emt 0:03:13]} 23. Qg3 {[%emt 0:03:09]} f5 {[%emt 0:01:11]} 24. Qe5+ {[%emt 0:02:46]} Qf6 {[%emt 0:00:29]} 25. Qxf6+ {[%emt 0:01:09]} Kxf6 {[%emt 0:01:16]} 26. c4 {[%emt 0:00:44]} Rfd8 {[%emt 0:00:41]} 27. Red1 {[%emt 0:00:35]} Ba6 {[%emt 0:00:54]} 28. b3 {[%emt 0:00:42]} b5 {[%emt 0:00:29]} 29. c5 {[%emt 0:04:40]} b4 {[%emt 0:00:01]} 30. f4 {[%emt 0:04:02]} exf3 {[%emt 0:00:28]} 31. gxf3 {[%emt 0:00:05]} Be2 {[%emt 0:00:08]} 32. Rd2 {[%emt 0:00:20]} Bxf3 {[%emt 0:00:10]} 33. Ne3 {[%emt 0:01:40]} g5 {[%emt 0:02:10]} 34. Nc4 {[%emt 0:00:11]} g4 {[%emt 0:00:53]} 35. Ne5 {[%emt 0:00:39]} Bd5 {[%emt 0:00:37]} 36. Kh2 {[%emt 0:00:31]} Rg8 {[%emt 0:01:55]} 37. Rg1 {[%emt 0:00:40]} Rc7 {[%emt 0:00:43]} 38. Nd3 {[%emt 0:01:37]} Rcg7 {[%emt 0:04:43]} 39. h4 {[%emt 0:01:09]} g3+ {[%emt 0:01:20]} 40. Kh3 {[%emt 0:00:00]} Rg4 {[%emt 0:00:00]} 41. Nxb4 {[%emt 0:03:41]} f4 {[%emt 0:02:23]} 42. Nxd5+ {[%emt 0:00:05]} exd5 {[%emt 0:00:10]} 43. Kg2 {[%emt 0:00:13]} Rxh4 {[%emt 0:00:56]} 44. Kf3 {[%emt 0:00:29]} Re8 {[%emt 0:01:09]} 45. Rd3 {[%emt 0:00:12]} Kf5 {[%emt 0:01:15]} 46. Rc3 {[%emt 0:01:08]} Rh2 {[%emt 0:00:48]} 47. Rg2 {[%emt 0:00:01]} Rxg2 {[%emt 0:01:10]} 48. Kxg2 {[%emt 0:00:04]} Kg4 {[%emt 0:00:15]} 0-1